fUST/lending_fUST_20241014
["ID","MTS","AMOUNT","RATE_DAILY","PERIOD"]
[340235299,1728888654624,-500.0,0.00026849,2]
[340235300,1728888654636,-500.0,0.00026849,2]
[340235301,1728888654647,-500.0,0.00026849,2]
[340235302,1728888654656,-1259.99,0.00026849,2]
[340235303,1728888654665,-1377.9,0.00026849,2]
[340235304,1728888654675,-500.0,0.00026849,2]
[340235305,1728888654684,-2017.69,0.00026849,2]
[340235306,1728888654693,-500.0,0.00026849,2]
[340235307,1728888654703,-500.0,0.00026849,2]
[340235308,1728888654712,-545.86,0.00026849,2]
[340235309,1728888654721,-250.0,0.00026849,2]
[340235310,1728888654730,-500.0,0.00026849,2]
[340235311,1728888654739,-350.0,0.00026868,2]
[340235312,1728888654749,-206.84433,0.00026931,2]
[340235313,1728888654759,-636.2,0.00026956,2]
[340235314,1728888654768,-393.0,0.0002696,15]
[340235315,1728888654778,-3239.379,0.00026965,2]
[340235316,1728888654787,-1000.0,0.00027,2]
[340235317,1728888654795,-500.0,0.00027,2]
[340235318,1728888654804,-510.52,0.00027,2]
[340235319,1728888654814,-2154.64800938,0.00027,2]
[340235320,1728888654823,-1000.0,0.00027,27]
[340235321,1728888654833,-600.0,0.00027077,2]
[340235322,1728888654842,-2330.78199778,0.000271,2]
[340235323,1728888654852,-184.949365,0.00027123,7]
[340235324,1728888654861,-184.949365,0.00027123,7]
[340235325,1728888654870,-500.0,0.00027123,2]
[340235326,1728888654879,-188.54692849,0.00027123,2]
[340235327,1728888654891,-851.16,0.00027123,2]
[340235328,1728888654900,-1000.0,0.00027123,2]
[340235329,1728888654910,-509.31,0.00027123,2]
[340235330,1728888654922,-181.73242838,0.00027123,2]
[340235331,1728888654931,-1255.23,0.00027123,2]
[340235332,1728888654941,-7551.44,0.00027123,2]
[340235333,1728888654950,-500.0,0.00027123,2]
[340235334,1728888654961,-1765.14,0.00027123,2]
[340235335,1728888654970,-778.33,0.00027123,2]
[340235336,1728888654979,-500.0,0.00027123,2]
[340235337,1728888654989,-500.0,0.00027123,2]
[340235338,1728888654998,-500.0,0.00027123,2]
[340235339,1728888655007,-609.12,0.00027123,2]
[340235340,1728888655017,-590.11300157,0.00027123,2]
[340235341,1728888655026,-500.0,0.00027123,2]
[340235342,1728888655036,-4824.09,0.00027123,2]
[340235343,1728888655045,-500.0,0.00027123,2]
[340235344,1728888655055,-5430.08,0.00027123,2]
[340235345,1728888655064,-2965.86,0.00027123,2]
[340235346,1728888655073,-500.0,0.00027123,2]
[340235347,1728888655082,-380.16,0.00027123,2]
[340235348,1728888655091,-500.0,0.00027123,2]
[340235349,1728888655101,-30352.2,0.00027123,2]
[340235350,1728888655110,-500.0,0.00027123,2]
[340235351,1728888655119,-500.0,0.00027123,2]
[340235352,1728888655129,-500.0,0.00027123,2]
[340235353,1728888655140,-1259.99,0.00027123,2]
[340235354,1728888655151,-1377.9,0.00027123,2]
[340235355,1728888655161,-500.0,0.00027123,2]
[340235356,1728888655172,-2017.69,0.00027123,2]
[340235357,1728888655181,-500.0,0.00027123,2]
[340235358,1728888655191,-500.0,0.00027123,2]
[340235359,1728888655200,-545.86,0.00027123,2]
[340235360,1728888655210,-250.0,0.00027123,2]
[340235361,1728888655219,-500.0,0.00027123,2]
[340235362,1728888655228,-1000.0,0.00027142,2]
[340235363,1728888655237,-1000.0,0.00027142,2]
[340235364,1728888655246,-15184.79810959,0.0002716,30]
[340235365,1728888655256,-465.01451515,0.00027168,2]
[340235366,1728888655267,-164.0,0.00027185,2]
[340235367,1728888655277,-636.2,0.00027209,2]
[340235368,1728888655287,-501.0,0.000273,2]
[340235369,1728888655297,-1500.0,0.00027328,2]
[340235370,1728888655307,-600.0,0.00027345,2]
[340235371,1728888655317,-150.0,0.00027397,2]
[340235372,1728888655326,-500.0,0.00027397,2]
[340235373,1728888655335,-500.0,0.00027397,2]
[340235374,1728888655346,-500.0,0.00027397,2]
[340235375,1728888655355,-500.0,0.00027397,2]
[340235376,1728888655364,-851.16,0.00027397,2]
[340235377,1728888655374,-869.28171442,0.00027397,2]
[340235378,1728888655383,-509.31,0.00027397,2]
[340235379,1728888655393,-500.0,0.00027397,2]
[340235380,1728888655402,-1255.23,0.00027397,2]
[340235381,1728888655412,-500.0,0.00027397,2]
[340235382,1728888655421,-500.0,0.00027397,2]
[340235383,1728888655430,-500.0,0.00027397,2]
[340235384,1728888655439,-500.0,0.00027397,2]
[340235385,1728888655448,-500.0,0.00027397,2]
[340235386,1728888655458,-611.68228938,0.00027397,2]
[340235387,1728888655467,-7551.44,0.00027397,2]
[340235388,1728888655477,-500.0,0.00027397,2]
[340235389,1728888655486,-1765.14,0.00027397,2]
[340235390,1728888655495,-778.33,0.00027397,2]
[340235391,1728888655505,-500.0,0.00027397,2]
[340235392,1728888655515,-500.0,0.00027397,2]
[340235393,1728888655526,-500.0,0.00027397,2]
[340235394,1728888655537,-609.12,0.00027397,2]
[340235395,1728888655548,-500.0,0.00027397,2]
[340235396,1728888655559,-4824.09,0.00027397,2]
[340235397,1728888655569,-500.0,0.00027397,2]
[340235398,1728888655581,-5430.08,0.00027397,2]
[340235399,1728888655591,-2965.86,0.00027397,2]
[340235400,1728888655600,-500.0,0.00027397,2]
[340235401,1728888655610,-500.0,0.00027397,2]
[340235402,1728888655619,-30352.2,0.00027397,2]
[340235403,1728888655628,-500.0,0.00027397,2]
[340235404,1728888655639,-500.0,0.00027397,2]
[340235405,1728888655648,-500.0,0.00027397,2]
[340235406,1728888655657,-1259.99,0.00027397,2]
[340235407,1728888655667,-1377.9,0.00027397,2]
[340235408,1728888655676,-500.0,0.00027397,2]
[340235409,1728888655686,-2017.69,0.00027397,2]
[340235410,1728888655696,-500.0,0.00027397,2]
[340235411,1728888655761,-500.0,0.00027397,2]
[340235412,1728888655770,-545.86,0.00027397,2]
[340235413,1728888655780,-250.0,0.00027397,2]
[340235414,1728888655789,-500.0,0.00027397,2]
[340235415,1728888655799,-160.826814,0.00027397,2]
[340235416,1728888655808,-450.0,0.00027416,5]
[340235417,1728888655817,-505.09990214,0.00027421,5]
[340235418,1728888655826,-636.2,0.00027461,2]
[340235419,1728888655835,-38476.99752171,0.000275,2]
[340235420,1728888655844,-184.949365,0.000275,7]
[340235421,1728888655853,-184.949361,0.000275,7]
[340235422,1728888655862,-600.0,0.00027613,2]
[340235423,1728888655871,-500.0,0.00027671,2]
[340235424,1728888655880,-851.16,0.00027671,2]
[340235425,1728888655890,-509.31,0.00027671,2]
[340235426,1728888655899,-1255.23,0.00027671,2]
[340235427,1728888655908,-7551.44,0.00027671,2]
[340235428,1728888655920,-500.0,0.00027671,2]
[340235429,1728888655931,-1765.14,0.00027671,2]
[340235430,1728888655943,-778.33,0.00027671,2]
[340235431,1728888655954,-500.0,0.00027671,2]
[340235432,1728888655965,-500.0,0.00027671,2]
[340235433,1728888655976,-500.0,0.00027671,2]
[340235434,1728888655987,-609.12,0.00027671,2]
[340235435,1728888655997,-500.0,0.00027671,2]
[340235436,1728888656006,-4824.09,0.00027671,2]
[340235437,1728888656015,-500.0,0.00027671,2]
[340235438,1728888656024,-5430.08,0.00027671,2]
[340235439,1728888656034,-2965.86,0.00027671,2]
[340235440,1728888656045,-500.0,0.00027671,2]
[340235441,1728888656056,-500.0,0.00027671,2]
[340235442,1728888656066,-30352.2,0.00027671,2]
[340235443,1728888656078,-500.0,0.00027671,2]
[340235444,1728888656087,-247.43888889,0.00027671,2]
[340235445,1728888656097,-500.0,0.00027671,2]
[340235446,1728888656106,-1259.99,0.00027671,2]
[340235447,1728888656116,-1377.9,0.00027671,2]
[340235448,1728888656124,-500.0,0.00027671,2]
[340235449,1728888656134,-2017.69,0.00027671,2]
[340235450,1728888656146,-500.0,0.00027671,2]
[340235451,1728888656155,-500.0,0.00027671,2]
[340235452,1728888656166,-545.86,0.00027671,2]
[340235453,1728888656176,-250.0,0.00027671,2]
[340235454,1728888656187,-500.0,0.00027671,2]
[340235455,1728888656196,-636.2,0.00027714,2]
[340235456,1728888656205,-153.0,0.00027778,2]
[340235457,1728888656214,-153.0,0.00027778,2]
[340235458,1728888656224,-153.0,0.00027778,2]
[340235459,1728888656232,-504.26081883,0.00027846,5]
[340235460,1728888656242,-1502.60823197,0.00027846,5]
[340235461,1728888656251,-199.00533311,0.00027846,5]
[340235462,1728888656260,-1500.0,0.00027856,2]
[340235463,1728888656269,-600.0,0.00027881,2]
[340235464,1728888656278,-227.473914,0.00027939,2]
[340235465,1728888656288,-500.0,0.00027945,2]
[340235466,1728888656296,-851.16,0.00027945,2]
[340235467,1728888656306,-509.31,0.00027945,2]
[340235468,1728888656318,-1255.23,0.00027945,2]
[340235469,1728888656328,-7551.44,0.00027945,2]
[340235470,1728888656340,-500.0,0.00027945,2]
[340235471,1728888656352,-1765.14,0.00027945,2]
[340235472,1728888656362,-778.33,0.00027945,2]
[340235473,1728888656373,-500.0,0.00027945,2]
[340235474,1728888656383,-391.11224639,0.00027945,2]
[340235475,1728888656393,-608.30406533,0.00027945,2]
[340235476,1728888656402,-609.12,0.00027945,2]
[340235477,1728888656414,-500.0,0.00027945,2]
[340235478,1728888656426,-4824.09,0.00027945,2]
[340235479,1728888656437,-500.0,0.00027945,2]
[340235480,1728888656447,-5430.08,0.00027945,2]
[340235481,1728888656457,-2965.86,0.00027945,2]
[340235482,1728888656466,-500.0,0.00027945,2]
[340235483,1728888656476,-500.0,0.00027945,2]
[340235484,1728888656485,-30352.2,0.00027945,2]
[340235485,1728888656494,-500.0,0.00027945,2]
[340235486,1728888656503,-500.0,0.00027945,2]
[340235487,1728888656513,-1259.99,0.00027945,2]
[340235488,1728888656523,-500.0,0.00027945,2]
[340235489,1728888656534,-1377.9,0.00027945,2]
[340235490,1728888656546,-2017.69,0.00027945,2]
[340235491,1728888656555,-500.0,0.00027945,2]
[340235492,1728888656565,-500.0,0.00027945,2]
[340235493,1728888656575,-545.86,0.00027945,2]
[340235494,1728888656584,-250.0,0.00027945,2]
[340235495,1728888656593,-500.0,0.00027945,2]
[340235496,1728888656602,-550.0,0.00027964,5]
[340235497,1728888656612,-636.2,0.00027966,2]
[340235498,1728888656621,-25800.15639238,0.0002799,2]
[340235499,1728888656630,-1563.41,0.00028,30]
[340235500,1728888656642,-2751.0,0.00028,14]
[340235501,1728888656651,-7433.66,0.00028,30]
[340235502,1728888656660,-503.69977418,0.00028046,5]
[340235503,1728888656669,-1500.0,0.00028046,5]
[340235504,1728888656678,-583.88154789,0.00028046,5]
[340235505,1728888656687,-1303.06536817,0.00028046,5]
[340235506,1728888656696,-620.28249527,0.00028046,5]
[340235507,1728888656705,-1500.0,0.00028046,5]
[340235508,1728888656715,-878.00602371,0.00028046,2]
[340235509,1728888656724,-600.0,0.00028149,2]
[340235510,1728888656733,-500.0,0.00028219,2]
[340235511,1728888656742,-851.16,0.00028219,2]
[340235512,1728888656750,-509.31,0.00028219,2]
[340235513,1728888656760,-1255.23,0.00028219,2]
[340235514,1728888656769,-636.2,0.00028219,2]
[340235515,1728888656778,-7551.44,0.00028219,2]
[340235516,1728888656787,-500.0,0.00028219,2]
[340235517,1728888656796,-1765.14,0.00028219,2]
[340235518,1728888656805,-778.33,0.00028219,2]
[340235519,1728888656815,-498.05,0.00028219,2]
[340235520,1728888656824,-609.12,0.00028219,2]
[340235521,1728888656832,-500.0,0.00028219,2]
[340235522,1728888656842,-4824.09,0.00028219,2]
[340235523,1728888656850,-500.0,0.00028219,2]
[340235524,1728888656859,-5430.08,0.00028219,2]
[340235525,1728888656868,-2965.86,0.00028219,2]
[340235526,1728888656877,-500.0,0.00028219,2]
[340235527,1728888656888,-488.33702807,0.00028219,2]
[340235528,1728888656897,-30352.2,0.00028219,2]
[340235529,1728888656906,-500.0,0.00028219,2]
[340235530,1728888656917,-500.0,0.00028219,2]
[340235531,1728888656926,-1259.99,0.00028219,2]
[340235532,1728888656936,-500.0,0.00028219,2]
[340235533,1728888656999,-1377.9,0.00028219,2]
[340235534,1728888657010,-2017.69,0.00028219,2]
[340235535,1728888657019,-500.0,0.00028219,2]
[340235536,1728888657028,-500.0,0.00028219,2]
[340235537,1728888657037,-545.86,0.00028219,2]
[340235538,1728888657046,-250.0,0.00028219,2]
[340235539,1728888657055,-500.0,0.00028219,2]
[340235540,1728888657064,-300.0,0.000283,13]
[340235541,1728888657073,-1709.01,0.000283,14]
[340235542,1728888657085,-1500.0,0.00028346,5]
[340235543,1728888657094,-1483.44854058,0.00028346,5]
[340235544,1728888657103,-1500.0,0.00028346,5]
[340235545,1728888657111,-1500.0,0.00028346,5]
[340235546,1728888657122,-1500.0,0.00028346,5]
[340235547,1728888657131,-367.08744198,0.00028346,5]
[340235548,1728888657140,-719.2241618,0.00028346,5]
[340235549,1728888657149,-1500.0,0.00028346,5]
[340235550,1728888657158,-1500.0,0.00028384,2]
[340235551,1728888657168,-600.0,0.00028418,2]
[340235552,1728888657177,-1500.0,0.00028446,5]
[340235553,1728888657185,-851.16,0.00028493,2]
[340235554,1728888657194,-509.31,0.00028493,2]
[340235555,1728888657203,-1255.23,0.00028493,2]
[340235556,1728888657213,-7551.44,0.00028493,2]
[340235557,1728888657222,-500.0,0.00028493,2]
[340235558,1728888657231,-1765.14,0.00028493,2]
[340235559,1728888657240,-778.33,0.00028493,2]
[340235560,1728888657250,-609.12,0.00028493,2]
[340235561,1728888657260,-500.0,0.00028493,2]
[340235562,1728888657269,-4824.09,0.00028493,2]
[340235563,1728888657278,-500.0,0.00028493,2]
[340235564,1728888657287,-5430.08,0.00028493,2]
[340235565,1728888657297,-2965.86,0.00028493,2]
[340235566,1728888657306,-500.0,0.00028493,2]
[340235567,1728888657315,-30352.2,0.00028493,2]
[340235568,1728888657325,-500.0,0.00028493,2]
[340235569,1728888657335,-500.0,0.00028493,2]
[340235570,1728888657344,-1259.99,0.00028493,2]
[340235571,1728888657354,-500.0,0.00028493,2]
[340235572,1728888657363,-1377.9,0.00028493,2]
[340235573,1728888657373,-2017.69,0.00028493,2]
[340235574,1728888657382,-500.0,0.00028493,2]
[340235575,1728888657393,-500.0,0.00028493,2]
[340235576,1728888657402,-545.86,0.00028493,2]
[340235577,1728888657412,-250.0,0.00028493,2]
[340235578,1728888657421,-500.0,0.00028493,2]
[340235579,1728888657430,-150.0,0.00028508,2]
[340235580,1728888657439,-526.0,0.00028508,2]
[340235581,1728888657449,-1157.0,0.00028508,2]
[340235582,1728888657458,-1060.0,0.00028508,2]
[340235583,1728888657469,-150.0,0.00028508,2]
[340235584,1728888657479,-650.0,0.00028512,5]
[340235585,1728888657488,-587.0,0.0002867,2]
[340235586,1728888657498,-600.0,0.00028686,2]
[340235587,1728888657509,-200.81907175,0.00028767,2]
[340235588,1728888657520,-500.0,0.00028767,2]
[340235589,1728888657531,-504.70704119,0.00028767,2]
[340235590,1728888657542,-515.37644066,0.00028767,2]
[340235591,1728888657553,-851.16,0.00028767,2]
[340235592,1728888657564,-509.31,0.00028767,2]
[340235593,1728888657574,-1255.23,0.00028767,2]
[340235594,1728888657584,-7551.44,0.00028767,2]
[340235595,1728888657594,-500.0,0.00028767,2]
[340235596,1728888657603,-1765.14,0.00028767,2]
[340235597,1728888657612,-778.33,0.00028767,2]
[340235598,1728888657621,-609.12,0.00028767,2]
[340235599,1728888657631,-506.34,0.00028767,2]
[340235600,1728888657640,-4824.09,0.00028767,2]
[340235601,1728888657649,-500.0,0.00028767,2]
[340235602,1728888657659,-5430.08,0.00028767,2]
[340235603,1728888657669,-2965.86,0.00028767,2]
[340235604,1728888657678,-500.0,0.00028767,2]
[340235605,1728888657687,-30352.2,0.00028767,2]
[340235606,1728888657696,-500.0,0.00028767,2]
[340235607,1728888657705,-169.05,0.00028767,2]
[340235608,1728888657714,-1259.99,0.00028767,2]
[340235609,1728888657724,-500.0,0.00028767,2]
[340235610,1728888657733,-1377.9,0.00028767,2]
[340235611,1728888657742,-2017.69,0.00028767,2]
[340235612,1728888657751,-500.0,0.00028767,2]
[340235613,1728888657760,-500.0,0.00028767,2]
[340235614,1728888657769,-545.86,0.00028767,2]
[340235615,1728888657778,-250.0,0.00028767,2]
[340235616,1728888657787,-500.0,0.00028767,2]
[340235617,1728888657796,-150.0,0.00028871,2]
[340235618,1728888657805,-1500.0,0.00028912,2]
[340235619,1728888657815,-948.98606276,0.00028954,2]
[340235620,1728888657824,-2660.40670685,0.00028979,2]
[340235621,1728888657832,-163.0,0.00028997,2]
[340235622,1728888657841,-1000.0,0.00029,120]
[340235623,1728888657850,-856.6731975,0.00029,2]
[340235624,1728888657859,-297.0,0.00029,120]
[340235625,1728888657868,-23961.50919535,0.00029,30]
[340235626,1728888657877,-307.49027,0.00029,120]
[340235627,1728888657886,-302.72757545,0.00029,2]
[340235628,1728888657896,-302.72757545,0.00029,2]
[340235629,1728888657905,-851.16,0.00029041,2]
[340235630,1728888657918,-509.31,0.00029041,2]
[340235631,1728888657928,-1255.23,0.00029041,2]
[340235632,1728888657938,-7551.44,0.00029041,2]
[340235633,1728888657948,-500.0,0.00029041,2]
[340235634,1728888657958,-1765.14,0.00029041,2]
[340235635,1728888657968,-778.33,0.00029041,2]
[340235636,1728888657977,-609.12,0.00029041,2]
[340235637,1728888657987,-4824.09,0.00029041,2]
[340235638,1728888657996,-500.0,0.00029041,2]
[340235639,1728888658006,-5430.08,0.00029041,2]
[340235640,1728888658016,-2965.86,0.00029041,2]
[340235641,1728888658026,-500.0,0.00029041,2]
[340235642,1728888658035,-30352.2,0.00029041,2]
[340235643,1728888658044,-500.0,0.00029041,2]
[340235644,1728888658054,-1259.99,0.00029041,2]
[340235645,1728888658115,-500.0,0.00029041,2]
[340235646,1728888658125,-1377.9,0.00029041,2]
[340235647,1728888658135,-2017.69,0.00029041,2]
[340235648,1728888658146,-506.32,0.00029041,2]
[340235649,1728888658155,-500.0,0.00029041,2]
[340235650,1728888658164,-545.86,0.00029041,2]
[340235651,1728888658173,-250.0,0.00029041,2]
[340235652,1728888658182,-472.4721462,0.00029041,2]
[340235653,1728888658191,-750.0,0.0002906,5]
[340235654,1728888658201,-1294.39933121,0.00029126,2]
[340235655,1728888658210,-782.8711705,0.00029146,5]
[340235656,1728888658220,-1500.0,0.00029146,5]
[340235657,1728888658230,-302.72757545,0.0002929,2]
[340235658,1728888658239,-302.72757545,0.0002929,2]
[340235659,1728888658248,-851.16,0.00029315,2]
[340235660,1728888658258,-509.31,0.00029315,2]
[340235661,1728888658267,-1255.23,0.00029315,2]
[340235662,1728888658276,-7551.44,0.00029315,2]
[340235663,1728888658285,-500.0,0.00029315,2]
[340235664,1728888658294,-1765.14,0.00029315,2]
[340235665,1728888658303,-778.33,0.00029315,2]
[340235666,1728888658312,-609.12,0.00029315,2]
[340235667,1728888658322,-4824.09,0.00029315,2]
[340235668,1728888658332,-500.0,0.00029315,2]
[340235669,1728888658341,-5430.08,0.00029315,2]
[340235670,1728888658351,-2965.86,0.00029315,2]
[340235671,1728888658360,-500.0,0.00029315,2]
[340235672,1728888658369,-30352.2,0.00029315,2]
[340235673,1728888658379,-500.0,0.00029315,2]
[340235674,1728888658389,-1259.99,0.00029315,2]
[340235675,1728888658398,-500.0,0.00029315,2]
[340235676,1728888658408,-1377.9,0.00029315,2]
[340235677,1728888658417,-2017.69,0.00029315,2]
[340235678,1728888658427,-500.0,0.00029315,2]
[340235679,1728888658436,-545.86,0.00029315,2]
[340235680,1728888658445,-250.0,0.00029315,2]
[340235681,1728888658454,-1500.0,0.0002944,2]
[340235682,1728888658464,-587.0,0.00029523,2]
[340235683,1728888658474,-302.72757545,0.0002958,2]
[340235684,1728888658484,-302.72757545,0.0002958,2]
[340235685,1728888658493,-851.16,0.00029589,2]
[340235686,1728888658503,-509.31,0.00029589,2]
[340235687,1728888658512,-1255.23,0.00029589,2]
[340235688,1728888658522,-7551.44,0.00029589,2]
[340235689,1728888658532,-361.63907604,0.00029589,2]
[340235690,1728888658541,-1765.14,0.00029589,2]
[340235691,1728888658551,-778.33,0.00029589,2]
[340235692,1728888658561,-609.12,0.00029589,2]
[340235693,1728888658571,-4824.09,0.00029589,2]
[340235694,1728888658581,-424.41240906,0.00029589,2]
[340235695,1728888658592,-5430.08,0.00029589,2]
[340235696,1728888658601,-2965.86,0.00029589,2]
[340235697,1728888658611,-405.01356459,0.00029589,2]
[340235698,1728888658621,-30352.2,0.00029589,2]
[340235699,1728888658630,-327.70690613,0.00029589,2]
[340235700,1728888658646,-1259.99,0.00029589,2]
[340235701,1728888658656,-500.0,0.00029589,2]
[340235702,1728888658666,-1377.9,0.00029589,2]
[340235703,1728888658676,-2017.69,0.00029589,2]
[340235704,1728888658685,-500.0,0.00029589,2]
[340235705,1728888658695,-545.86,0.00029589,2]
[340235706,1728888658705,-175.59663899,0.00029589,2]
[340235707,1728888658714,-850.0,0.00029608,5]
[340235708,1728888658724,-7433.66,0.000297,30]
[340235709,1728888658734,-433.114449,0.00029791,2]
[340235710,1728888658744,-2751.0,0.000298,14]
[340235711,1728888658754,-1563.41,0.000298,30]
[340235712,1728888658763,-573.196018,0.000298,14]
[340235713,1728888658772,-851.16,0.00029863,2]
[340235714,1728888658782,-509.31,0.00029863,2]
[340235715,1728888658792,-1255.23,0.00029863,2]
[340235716,1728888658801,-7551.44,0.00029863,2]
[340235717,1728888658811,-1765.14,0.00029863,2]
[340235718,1728888658820,-778.33,0.00029863,2]
[340235719,1728888658830,-609.12,0.00029863,2]
[340235720,1728888658840,-4824.09,0.00029863,2]
[340235721,1728888658849,-5430.08,0.00029863,2]
[340235722,1728888658859,-2965.86,0.00029863,2]
[340235723,1728888658868,-30352.2,0.00029863,2]
[340235724,1728888658877,-1259.99,0.00029863,2]
[340235725,1728888658892,-500.0,0.00029863,2]
[340235726,1728888658901,-1377.9,0.00029863,2]
[340235727,1728888658911,-2017.69,0.00029863,2]
[340235728,1728888658922,-500.0,0.00029863,2]
[340235729,1728888658932,-545.86,0.00029863,2]
[340235730,1728888658942,-302.72757545,0.0002987,2]
[340235731,1728888658952,-302.72757545,0.0002987,2]
[340235732,1728888658962,-8685.0744,0.000299,2]
[340235733,1728888658972,-3000.0,0.000299,120]
[340235734,1728888658982,-1709.01,0.000299,14]
[340235735,1728888658993,-154.41383337,0.00029923,2]
[340235736,1728888659004,-1500.0,0.00029968,2]
[340235737,1728888659013,-150.0,0.00029973,5]
[340235738,1728888659023,-160.0,0.00029999,10]
[340235739,1728888659033,-200.0,0.0003,120]
[340235740,1728888659043,-1044739.81981042,0.0003,7]
[340235741,1728888659053,-516.0,0.0003,4]
[340235742,1728888659062,-3390.91672416,0.0003,5]
[340235743,1728888659072,-190.87,0.0003,2]
[340235744,1728888659082,-167.78554154,0.0003,28]
[340235745,1728888659093,-14495.45375,0.0003,2]
[340235746,1728888659102,-274.0,0.0003,2]
[340235747,1728888659112,-500.0,0.0003,10]
[340235748,1728888659169,-500.0,0.0003,10]
[340235749,1728888659180,-500.0,0.0003,10]
[340235750,1728888659189,-500.0,0.0003,10]
[340235751,1728888659199,-500.0,0.0003,10]
[340235752,1728888659209,-500.0,0.0003,10]
[340235753,1728888659219,-500.0,0.0003,10]
[340235754,1728888659228,-766.50884505,0.0003,10]
[340235755,1728888659238,-743.59404278,0.0003,10]
[340235756,1728888659248,-500.0,0.0003,10]
[340235757,1728888659258,-635.96597016,0.0003,10]
[340235758,1728888659268,-500.0,0.0003,10]
[340235759,1728888659278,-500.0,0.0003,10]
[340235760,1728888659287,-500.0,0.0003,10]
[340235761,1728888659297,-581.01365117,0.0003,10]
[340235762,1728888659306,-500.0,0.0003,10]
[340235763,1728888659316,-500.0,0.0003,10]
[340235764,1728888659325,-500.0,0.0003,10]
[340235765,1728888659334,-500.0,0.0003,10]
[340235766,1728888659344,-500.0,0.0003,10]
[340235767,1728888659353,-500.0,0.0003,10]
[340235768,1728888659363,-500.0,0.0003,10]
[340235769,1728888659373,-500.0,0.0003,10]
[340235770,1728888659382,-500.0,0.0003,10]
[340235771,1728888659397,-500.0,0.0003,10]
[340235772,1728888659406,-500.0,0.0003,10]
[340235773,1728888659416,-500.0,0.0003,10]
[340235774,1728888659426,-500.0,0.0003,10]
[340235775,1728888659435,-500.0,0.0003,10]
[340235776,1728888659444,-500.0,0.0003,10]
[340235777,1728888659454,-500.0,0.0003,10]
[340235778,1728888659464,-500.0,0.0003,10]
[340235779,1728888659473,-500.0,0.0003,10]
[340235780,1728888659483,-524.01648818,0.0003,10]
[340235781,1728888659493,-761.26401441,0.0003,10]
[340235782,1728888659502,-272.9293422,0.0003,2]
[340235783,1728888659512,-851.16,0.00030136,2]
[340235784,1728888659522,-509.31,0.00030136,2]
[340235785,1728888659531,-500.0,0.00030136,2]
[340235786,1728888659542,-1255.23,0.00030136,2]
[340235787,1728888659551,-1000.0,0.00030136,120]
[340235788,1728888659561,-7551.44,0.00030136,2]
[340235789,1728888659571,-1765.14,0.00030136,2]
[340235790,1728888659580,-778.33,0.00030136,2]
[340235791,1728888659590,-609.12,0.00030136,2]
[340235792,1728888659600,-4824.09,0.00030136,2]
[340235793,1728888659611,-5430.08,0.00030136,2]
[340235794,1728888659620,-2965.86,0.00030136,2]
[340235795,1728888659630,-30352.2,0.00030136,2]
[340235796,1728888659644,-1259.99,0.00030136,2]
[340235797,1728888659654,-500.0,0.00030136,2]
[340235798,1728888659663,-1377.9,0.00030136,2]